bitfinex/quotes_SOLUSD_20240717
["timestamp","ask_amount","ask_price","bid_price","bid_amount"]
[1721244525210,6.3588,157.26,157.25,15.921]
[1721244525513,26.3586,157.27,157.24,15.59]
[1721244525878,6.3589,157.26,157.24,15.59]
[1721244526405,6.3589,157.26,157.23,15.59]
[1721244527281,6.3589,157.26,157.24,15.59]
[1721244528596,6.3589,157.26,157.23,15.59]
[1721244529506,6.3589,157.26,157.24,15.59]
[1721244530303,6.3589,157.26,157.21,22.7013]
[1721244530304,6.3589,157.26,157.23,15.59]
[1721244531387,6.3589,157.26,157.21,22.7013]
[1721244531589,6.3589,157.26,157.22,15.59]
[1721244531812,6.3582,157.28,157.23,12.6352]
[1721244531996,6.3582,157.28,157.26,15.59]
[1721244532179,6.8330425,157.29,157.26,15.59]
[1721244532709,0.4753425,157.29,157.22,15.9005]
[1721244532901,6.3588,157.27,157.23,15.59]
[1721244538886,6.3597,157.24,157.2,15.59]
[1721244539821,6.3593,157.25,157.2,21.9513]
[1721244539993,6.3593,157.25,157.21,15.59]
[1721244539994,20.0,157.24,157.21,15.59]
[1721244540397,26.3597,157.24,157.21,15.59]
[1721244541716,20.0,157.24,157.21,15.59]
[1721244542312,26.3597,157.24,157.21,15.59]
[1721244545319,6.3602,157.23,157.19,102.91842385]
[1721244546017,6.3605,157.22,157.19,102.91842385]
[1721244546714,6.3602,157.23,157.19,102.91842385]
[1721244547221,6.3606,157.22,157.19,87.32842385]
[1721244547402,6.3611,157.21,157.19,87.32842385]
[1721244547606,6.361,157.21,157.19,87.32842385]
[1721244547811,6.3613,157.2,157.17,62.91942385]
[1721244548131,6.3618,157.19,157.17,62.91942385]
[1721244549025,6.3621,157.18,157.17,62.91942385]
[1721244549203,6.3618,157.19,157.17,62.91942385]
[1721244549604,6.3621,157.18,157.14,21.9536]
[1721244550409,6.3618,157.19,157.14,21.9536]
[1721244550611,6.3618,157.19,157.15,15.59]
[1721244551005,0.17,157.2,157.16,15.59]
[1721244551210,47.6064,157.23,157.16,15.59]
[1721244551413,6.361,157.21,157.17,15.59]
[1721244551608,6.361,157.21,157.16,6.3627]
[1721244551934,20.0,157.2,157.16,21.9527]
[1721244552111,26.3613,157.2,157.17,15.59]
[1721244552319,20.0,157.2,157.17,15.59]
[1721244552537,22.6064,157.23,157.17,15.59]
[1721244553210,20.0,157.23,157.17,15.59]
[1721244553412,6.3606,157.22,157.18,15.59]
[1721244553611,20.0,157.21,157.18,15.59]
[1721244553819,6.3606,157.22,157.18,15.59]
[1721244554147,18.5031,157.27,157.19,15.59]
[1721244554355,2.6064,157.27,157.2,15.59]
[1721244554850,6.3602,157.23,157.2,15.59]
[1721244555062,6.3595,157.25,157.22,15.59]
[1721244555624,20.0,157.24,157.21,15.59]
[1721244556450,6.3605,157.22,157.2,15.59]
[1721244556621,6.3609,157.21,157.19,30.6509]
[1721244557019,6.3606,157.22,157.19,30.6509]
[1721244557230,6.3601,157.23,157.19,30.6509]
[1721244557586,6.3601,157.23,157.2,15.59]
[1721244557850,6.3606,157.22,157.19,30.6509]
[1721244558051,6.361,157.21,157.19,30.6509]
[1721244558422,6.361,157.21,157.19,15.0609]
[1721244559152,0.4753425,157.29,157.19,15.0609]
[1721244559317,6.8329425,157.29,157.25,15.59]
[1721244559517,6.3581,157.28,157.25,15.59]
[1721244559763,6.3581,157.28,157.24,15.59]
[1721244561337,6.3581,157.28,157.25,15.59]
[1721244561857,6.8331425,157.29,157.25,15.59]
[1721244562460,0.4753425,157.29,157.27,15.59]
[1721244562755,20.4753425,157.29,157.28,15.59]
[1721244563052,20.4753425,157.29,157.26,15.8964]
[1721244563259,0.4753425,157.29,157.28,15.59]
[1721244564759,0.4753425,157.29,157.26,15.59]
[1721244564934,6.8330425,157.29,157.26,15.59]
[1721244565140,6.8330425,157.29,157.27,15.59]
[1721244566247,6.8330425,157.29,157.28,15.59]
[1721244566439,0.4753425,157.29,157.28,15.59]
[1721244566640,6.8329425,157.29,157.28,15.59]
[1721244566955,6.358,157.28,157.27,15.59]
[1721244567456,6.358,157.28,157.26,15.59]
[1721244568170,6.358,157.28,157.23,28.7307]
[1721244568171,6.3581,157.28,157.23,28.7307]
[1721244568346,6.3581,157.28,157.26,15.59]
[1721244570272,6.3581,157.28,157.25,15.59]
[1721244570438,0.4753425,157.29,157.25,15.59]
[1721244570761,6.3581,157.28,157.26,15.59]
[1721244571068,0.4753425,157.29,157.25,15.59]
[1721244571261,0.4753425,157.29,157.23,6.4706]
[1721244571262,0.4753425,157.29,157.24,15.59]
[1721244571572,6.3585,157.27,157.24,15.59]
[1721244571741,6.358,157.28,157.25,15.59]
[1721244572362,6.3584,157.27,157.24,15.59]
[1721244572668,0.4753425,157.29,157.25,15.59]
[1721244572669,6.8333425,157.29,157.25,15.59]
[1721244572967,6.358,157.28,157.25,15.59]
[1721244573145,6.358,157.28,157.24,15.59]
[1721244574363,6.3593,157.25,157.21,30.9957]
[1721244576371,6.3598,157.24,157.21,30.9957]
[1721244577583,6.3593,157.25,157.21,30.9957]
[1721244577744,6.3593,157.25,157.22,15.59]
[1721244578456,6.3593,157.25,157.21,30.9957]
[1721244579054,6.359,157.26,157.22,15.59]
[1721244579375,6.3581,157.28,157.23,21.95]
[1721244579557,20.0,157.27,157.23,21.95]
[1721244579755,26.3586,157.27,157.23,15.59]
[1721244580167,6.3589,157.26,157.21,53.2583]
[1721244580346,6.3593,157.25,157.21,46.8976]
[1721244580751,6.3589,157.26,157.23,15.59]
[1721244581078,6.3589,157.26,157.22,15.59]
[1721244581588,6.3593,157.25,157.22,15.59]
[1721244582260,6.3593,157.25,157.21,46.8976]
[1721244582651,6.3593,157.25,157.21,30.9957]
[1721244582976,6.3589,157.26,157.22,15.59]
[1721244585092,6.3593,157.25,157.22,15.59]
[1721244585457,6.3589,157.26,157.21,37.3564]
[1721244585857,6.3593,157.25,157.21,30.9957]
[1721244587574,20.0,157.27,157.21,30.9957]
[1721244587774,6.3589,157.26,157.22,15.59]
[1721244587965,6.3597,157.24,157.21,30.9957]
[1721244588175,6.3594,157.25,157.21,30.9957]
[1721244589667,6.359,157.26,157.22,15.59]
[1721244589869,6.359,157.26,157.22,16.83997893]
[1721244590999,6.3594,157.25,157.22,16.83997893]
[1721244591286,6.3597,157.24,157.21,30.9957]
[1721244593874,6.3594,157.25,157.21,30.9957]
[1721244597269,6.3598,157.24,157.21,30.9957]
[1721244598169,6.3598,157.24,157.21,15.4057]
[1721244598381,6.3598,157.24,157.21,30.9957]
[1721244598585,6.3594,157.25,157.21,30.9957]
[1721244600392,6.3587,157.27,157.22,6.3604]
[1721244600581,26.3591,157.26,157.21,37.3564]
[1721244600784,6.3591,157.26,157.21,37.3564]
[1721244601391,6.3594,157.25,157.21,30.9957]
[1721244602395,6.3594,157.25,157.21,37.3565]
[1721244603301,6.3589,157.26,157.21,37.3565]
[1721244603483,6.3589,157.26,157.22,16.66979772]
[1721244603668,6.3589,157.26,157.22,15.59]
[1721244604069,36.3697425,157.29,157.21,30.9957]
[1721244604373,6.3597,157.24,157.21,15.4057]
[1721244604980,6.3601,157.23,157.21,15.4057]
[1721244605188,45.0,157.28,157.21,15.4057]
[1721244605512,6.3605,157.22,157.18,21.9521]
[1721244605698,6.3605,157.22,157.18,15.59]
[1721244606017,15.8986,157.25,157.17,30.8762]
[1721244606172,65.17,157.24,157.17,15.2862]
[1721244606372,6.3614,157.2,157.17,15.2862]
[1721244606571,6.361,157.21,157.17,30.8762]
[1721244606803,6.361,157.21,157.17,37.2387]
[1721244607096,6.3606,157.22,157.17,37.2387]
[1721244607305,6.3606,157.22,157.17,38.51100827]
[1721244607480,6.3606,157.22,157.18,15.59]
[1721244607679,6.3609,157.21,157.18,15.59]
[1721244608691,6.3609,157.21,157.17,30.8762]
[1721244610779,6.3609,157.21,157.18,15.59]
[1721244612501,6.3605,157.22,157.18,15.59]
[1721244612686,6.3613,157.2,157.17,15.2862]
[1721244612890,6.3613,157.2,157.17,30.8762]
[1721244613081,6.3618,157.19,157.17,15.2862]
[1721244613783,6.3614,157.2,157.17,15.2862]
[1721244614003,20.0,157.24,157.17,15.2862]
[1721244614205,6.3609,157.21,157.17,15.2862]
[1721244614885,6.3613,157.2,157.17,15.2862]
[1721244615083,20.0,157.24,157.19,15.59]
[1721244615385,6.3606,157.22,157.19,15.59]
[1721244615599,6.361,157.21,157.19,15.59]
[1721244615788,6.361,157.21,157.18,15.59]
[1721244616102,6.361,157.21,157.18,16.86225678]
[1721244616301,6.3606,157.22,157.18,16.86225678]
[1721244617087,6.3609,157.21,157.18,16.86225678]
[1721244617399,6.3609,157.21,157.19,15.59]
[1721244617574,6.3605,157.22,157.19,15.59]
[1721244618089,6.3617,157.19,157.17,15.2862]
[1721244618286,6.3621,157.18,157.17,15.2862]
[1721244618486,6.3621,157.18,157.16,6.3531]
[1721244619717,15.9025,157.21,157.13,32.1473]
[1721244619883,6.3625,157.17,157.13,32.1473]
[1721244620077,6.362,157.19,157.16,15.59]
[1721244620277,20.0,157.24,157.17,1.17067401]
[1721244620610,6.3605,157.22,157.18,15.59]
[1721244620903,20.0,157.21,157.18,16.86225249]
[1721244621481,6.3602,157.23,157.2,15.59]
[1721244621688,6.3602,157.23,157.21,15.59]
[1721244621885,6.3602,157.23,157.21,16.86212651]
[1721244622294,6.3598,157.24,157.21,16.86212651]
[1721244622487,6.3598,157.24,157.22,15.59]
[1721244623097,6.3594,157.25,157.22,15.59]
[1721244623991,6.3601,157.23,157.22,15.59]
[1721244624191,6.3601,157.23,157.21,15.59]
[1721244624901,6.3605,157.22,157.2,15.59]
[1721244625118,6.3609,157.21,157.19,32.0439]
[1721244625492,6.3605,157.22,157.19,32.0439]
[1721244625697,6.3605,157.22,157.2,15.59]
[1721244626297,6.3605,157.22,157.19,32.0439]
[1721244626501,6.361,157.21,157.19,32.0439]
[1721244626698,6.3606,157.22,157.19,16.4539]
[1721244627115,6.3606,157.22,157.19,32.0439]
[1721244627417,6.361,157.21,157.19,16.4539]
[1721244627992,6.361,157.21,157.18,15.59]
[1721244628205,6.3613,157.2,157.17,15.59]
[1721244628592,6.361,157.21,157.17,15.59]
[1721244628792,6.361,157.21,157.17,21.9525]
[1721244628993,6.3603,157.23,157.18,15.59]
[1721244629217,6.3606,157.22,157.18,15.59]
[1721244630317,6.36,157.24,157.19,16.02072612]
[1721244630496,20.0,157.23,157.2,15.59]
[1721244630695,26.3601,157.23,157.2,15.59]
[1721244630893,20.0,157.23,157.19,16.35601696]
[1721244631094,20.0,157.24,157.21,15.59]
[1721244631324,20.0,157.24,157.22,15.59]
[1721244631697,6.3593,157.25,157.22,15.59]
[1721244632121,0.4753425,157.29,157.23,15.59]
[1721244632421,6.3591,157.26,157.23,15.59]
[1721244632643,26.3593,157.25,157.23,15.59]
[1721244632824,26.3593,157.25,157.21,23.33273466]
[1721244632825,6.3593,157.25,157.22,15.59]
[1721244634306,6.3593,157.25,157.23,15.59]
[1721244635905,6.3593,157.25,157.21,22.1861]
[1721244636232,6.3593,157.25,157.23,15.59]
[1721244638206,6.359,157.26,157.24,15.59]
[1721244638420,6.359,157.26,157.25,15.59]
[1721244638630,26.359,157.26,157.25,15.59]
[1721244639509,6.3595,157.25,157.24,15.59]
[1721244647918,26.359,157.26,157.24,15.59]
[1721244648121,6.359,157.26,157.24,15.59]
[1721244648340,6.359,157.26,157.22,1.27178008]
[1721244648634,6.359,157.26,157.25,15.59]
[1721244649133,6.3586,157.27,157.25,15.59]
[1721244650320,6.3588,157.26,157.25,15.59]
[1721244652651,6.3588,157.26,157.21,44.4487]
[1721244652823,6.3588,157.26,157.24,15.59]
[1721244653624,0.4753425,157.29,157.25,16.86155284]
[1721244653836,0.4753425,157.29,157.26,15.59]
[1721244654034,6.3583,157.28,157.26,15.59]
[1721244654746,6.8330425,157.29,157.27,15.59]
[1721244655422,0.4753425,157.29,157.27,15.59]
[1721244655637,0.4753425,157.29,157.28,15.59]
[1721244656033,0.4753425,157.29,157.25,15.8974]
[1721244656034,0.4753425,157.29,157.27,15.59]
[1721244656237,6.8329425,157.29,157.27,15.59]
[1721244657234,0.4753425,157.29,157.27,15.59]
[1721244659745,0.4753425,157.29,157.28,21.948]
[1721244660365,0.4753425,157.29,157.28,15.59]
[1721244661751,0.4753425,157.29,157.28,21.948]
[1721244663266,0.4753425,157.29,157.28,15.59]
[1721244666467,0.4753425,157.29,157.28,21.948]
[1721244670865,0.4753425,157.29,157.28,37.538]
[1721244671046,0.4753425,157.29,157.28,38.80919679]
[1721244671250,0.4753425,157.29,157.28,15.59]
[1721244672544,0.4753425,157.29,157.28,21.948]
[1721244673041,0.4753425,157.29,157.28,23.21937818]
[1721244674673,0.4753425,157.29,157.28,21.948]
[1721244677448,0.4753425,157.29,157.28,37.538]
[1721244677855,0.4753425,157.29,157.28,21.948]
[1721244680561,0.4753425,157.29,157.28,37.538]
[1721244681177,0.4753425,157.29,157.28,21.948]
[1721244687695,0.4753425,157.29,157.28,15.59]
[1721244689171,0.4753425,157.29,157.28,21.948]
[1721244694480,0.4753425,157.29,157.28,6.358]
[1721244694690,0.4753425,157.29,157.28,15.59]
[1721244695385,0.4753425,157.29,157.28,21.948]
[1721244695583,0.4753425,157.29,157.26,15.8969]
[1721244695788,6.8330425,157.29,157.23,15.8996]
[1721244696087,6.8330425,157.29,157.24,21.9494]
[1721244696288,6.8330425,157.29,157.25,15.59]
[1721244696667,6.8330425,157.29,157.24,21.9494]
[1721244697361,6.8330425,157.29,157.23,15.8996]
[1721244697362,6.3581,157.28,157.23,22.2595]
[1721244697569,6.3581,157.28,157.23,37.8495]
[1721244698384,6.8330425,157.29,157.24,6.3596]
[1721244698888,6.3581,157.28,157.23,37.8495]
[1721244699096,6.3591,157.26,157.21,6.3605]
[1721244699384,6.3591,157.26,157.22,15.59]
[1721244699772,0.4753425,157.29,157.22,15.59]
[1721244699967,0.4753425,157.29,157.23,21.9497]
[1721244700174,0.4753425,157.29,157.22,6.3604]
[1721244700369,0.17,157.28,157.22,21.9504]
[1721244700569,6.3589,157.26,157.22,15.59]
[1721244700770,6.3585,157.27,157.22,21.9504]
[1721244701193,6.3581,157.28,157.23,21.9499]
[1721244701889,6.3581,157.28,157.23,6.3599]
[1721244702791,6.3589,157.26,157.21,22.2624]
[1721244703097,26.3586,157.27,157.22,21.9503]
[1721244703394,26.3586,157.27,157.22,6.3603]
[1721244703573,26.3586,157.27,157.22,21.9503]
[1721244704083,6.359,157.26,157.22,15.59]
[1721244704396,6.359,157.26,157.21,37.8525]
[1721244704972,6.359,157.26,157.22,6.3604]
[1721244705180,26.3585,157.27,157.22,6.3604]
[1721244705991,6.3588,157.26,157.22,6.3604]
[1721244706308,6.3588,157.26,157.21,31.4918]
[1721244706309,6.3588,157.26,157.21,37.8526]
[1721244707579,6.3593,157.25,157.21,15.9018]
[1721244707797,6.3589,157.26,157.21,15.9018]
[1721244708097,26.3586,157.27,157.22,6.3604]
[1721244709087,6.3588,157.26,157.22,6.3604]
[1721244709293,26.3586,157.27,157.22,21.9504]
[1721244709904,20.0,157.27,157.23,6.36]
[1721244710105,20.0,157.27,157.24,6.3596]
[1721244710415,20.0,157.27,157.23,37.8501]
[1721244711573,26.3584,157.27,157.23,37.8501]
[1721244712389,20.0,157.27,157.23,37.8501]
[1721244712976,20.0,157.27,157.24,15.59]
[1721244713480,26.3584,157.27,157.24,15.59]
[1721244713696,0.4753425,157.29,157.24,15.8082]
[1721244713906,0.4753425,157.29,157.27,15.59]
[1721244714575,0.4753425,157.29,157.27,21.9483]
[1721244714779,0.4753425,157.29,157.28,21.948]
[1721244715210,0.4753425,157.29,157.28,15.59]
[1721244716378,0.4753425,157.29,157.28,21.948]
[1721244719800,0.4753425,157.29,157.28,82.538]
[1721244719984,0.4753425,157.29,157.28,98.4823]
[1721244720188,0.4753425,157.29,157.28,145.2523]
[1721244720902,6.3544,157.37,157.32,6.3562]
[1721244721087,20.0,157.36,157.33,15.59]
[1721244721289,26.3549,157.36,157.33,15.59]
[1721244721893,18.489,157.41,157.33,15.59]
[1721244721894,6.3543,157.38,157.34,15.59]
[1721244722089,23.33001057,157.44,157.35,16.86090945]
[1721244722291,6.3535,157.4,157.36,16.86077702]
[1721244722488,6.3536,157.39,157.36,15.59]
[1721244722742,6.3536,157.39,157.35,15.59]
[1721244722900,6.3543,157.38,157.34,15.59]
[1721244723100,6.3543,157.38,157.35,15.59]
[1721244723303,6.3532,157.4,157.37,15.59]
[1721244723515,3.0816,157.38,157.26,15.9708]
[1721244723692,15.8893,157.34,157.26,31.5608]
[1721244723904,6.3576,157.3,157.26,15.9708]
[1721244724402,16.0561,157.37,157.27,15.59]
[1721244724597,65.0,157.36,157.27,21.9484]
[1721244724799,6.3567,157.32,157.28,15.59]
[1721244725524,6.3567,157.32,157.26,38.226]
[1721244725730,6.3572,157.31,157.27,15.59]
[1721244726613,6.3565,157.32,157.27,21.9484]
[1721244727207,65.0,157.36,157.27,21.9484]
[1721244727208,6.3568,157.31,157.27,15.59]
[1721244727696,65.0,157.36,157.27,15.59]
[1721244727894,0.17,157.35,157.27,15.59]
[1721244728794,6.3559,157.34,157.29,6.3575]
[1721244729105,20.0,157.33,157.28,15.59]
[1721244729311,65.0,157.36,157.28,15.59]
[1721244729719,6.3562,157.33,157.28,31.4845]
[1721244729899,6.3562,157.33,157.28,15.8945]
[1721244730096,20.0,157.36,157.27,15.59]
[1721244730321,61.0587,157.35,157.26,15.9708]
[1721244730627,6.3573,157.3,157.26,15.9708]
[1721244730809,6.3569,157.31,157.26,37.9196]
[1721244731007,61.0587,157.35,157.27,6.3584]
[1721244731008,6.3565,157.32,157.27,6.3584]
[1721244731217,45.17,157.35,157.27,15.8957]
[1721244731403,20.0,157.34,157.27,31.4857]
[1721244731598,6.3569,157.31,157.27,15.59]
[1721244731800,6.3569,157.31,157.26,37.9196]
[1721244732133,20.0,157.34,157.27,6.3583]
[1721244732341,6.3568,157.32,157.27,21.9483]
[1721244732699,6.3568,157.31,157.27,15.59]
[1721244733100,6.3565,157.32,157.27,21.9483]
[1721244733332,6.3561,157.33,157.28,6.358]
[1721244733817,20.0,157.32,157.28,21.948]
[1721244734018,26.3565,157.32,157.28,15.59]
[1721244734420,26.3565,157.32,157.27,21.9483]
[1721244736733,20.0,157.32,157.28,6.358]
[1721244736916,20.0,157.32,157.29,15.59]
[1721244737107,3.0816,157.38,157.28,31.4845]
[1721244737108,23.0816,157.38,157.28,31.4845]
[1721244737307,45.17,157.37,157.28,15.8945]
[1721244737507,6.356,157.34,157.29,21.9473]
[1721244737744,20.0,157.33,157.29,21.9473]
[1721244737909,20.0,157.33,157.3,6.3572]
[1721244738111,20.0,157.33,157.29,15.59]
[1721244738300,20.0,157.36,157.29,15.59]
[1721244739234,6.3559,157.34,157.29,21.9475]
[1721244739431,20.0,157.33,157.29,21.9475]
[1721244739801,6.3559,157.34,157.29,21.9475]
[1721244741311,6.3559,157.34,157.3,15.59]
[1721244741702,6.3559,157.34,157.29,21.9475]
[1721244741909,259.2,157.41,157.32,15.59]
[1721244742107,6.3553,157.35,157.32,15.59]
[1721244743509,6.3556,157.34,157.32,15.59]
[1721244743705,6.3556,157.34,157.3,38.0715]
[1721244743929,6.3556,157.34,157.3,22.1792]
[1721244744137,6.356,157.33,157.3,6.5892]
[1721244744430,6.356,157.33,157.28,6.3579]
[1721244744431,15.8863,157.37,157.28,15.59]
[1721244744750,6.3566,157.32,157.28,15.59]
[1721244745240,6.357,157.31,157.27,31.4854]
[1721244745424,6.357,157.31,157.27,15.59]
[1721244745623,6.3569,157.31,157.27,15.59]
[1721244746221,6.3569,157.31,157.27,21.9484]
[1721244747721,6.3565,157.32,157.27,21.9484]
[1721244748926,6.3565,157.32,157.28,6.358]
[1721244749736,6.3561,157.33,157.28,6.358]
[1721244749927,45.0,157.32,157.28,6.358]
[1721244750128,6.357,157.31,157.27,21.9484]
[1721244750308,45.0,157.32,157.27,21.9484]
[1721244750512,51.3566,157.32,157.28,15.59]
[1721244750839,51.3566,157.32,157.28,21.948]
[1721244751633,51.3566,157.32,157.28,15.59]
[1721244751935,6.3573,157.3,157.27,15.59]
[1721244752134,45.0,157.32,157.26,22.29]
[1721244752352,6.3574,157.3,157.26,22.29]
[1721244753117,6.3574,157.3,157.26,37.88]
[1721244753318,6.3574,157.3,157.26,22.29]
[1721244753938,26.5268,157.31,157.26,44.2388]
[1721244754433,6.3573,157.3,157.26,44.2388]
[1721244755025,6.3573,157.3,157.26,37.88]
[1721244755237,26.3569,157.31,157.27,16.85882508]
[1721244755820,20.0,157.31,157.27,21.9484]
[1721244756021,20.0,157.34,157.27,21.9484]
[1721244756220,45.0,157.33,157.27,6.3584]
[1721244756420,20.0,157.32,157.27,6.3584]
[1721244756717,6.3579,157.29,157.26,37.88]
[1721244757821,6.3579,157.29,157.26,22.29]
[1721244759534,6.3573,157.3,157.26,44.2388]
[1721244759730,6.3573,157.3,157.26,37.88]
[1721244760298,6.357,157.31,157.26,44.776882]
[1721244760546,6.3557,157.34,157.3,6.3572]
[1721244760848,6.3557,157.34,157.3,15.59]
[1721244761050,15.8865,157.37,157.28,15.59]
[1721244761765,6.3562,157.33,157.28,21.948]
[1721244762122,6.3564,157.32,157.28,21.948]
[1721244762742,6.3565,157.32,157.28,21.948]
[1721244763125,6.356,157.34,157.28,15.59]
[1721244763321,20.0,157.33,157.31,15.59]
[1721244763627,20.0,157.33,157.29,21.9475]
[1721244763841,20.0,157.33,157.29,15.59]
[1721244763842,26.3561,157.33,157.29,15.59]
[1721244764019,20.0,157.33,157.28,31.4845]
[1721244764329,20.0,157.37,157.28,31.4845]
[1721244764519,45.17,157.36,157.28,31.4845]
[1721244764724,20.0,157.35,157.28,31.4845]
[1721244764942,45.17,157.34,157.28,31.4845]
[1721244765123,6.3565,157.32,157.28,31.4845]
[1721244765320,6.3565,157.32,157.28,15.8945]
[1721244765732,6.3561,157.33,157.28,15.8945]
[1721244765938,20.0,157.32,157.28,15.8945]
[1721244766139,26.3565,157.32,157.28,15.8945]
[1721244766525,20.0,157.32,157.28,37.8424]
[1721244767146,20.0,157.32,157.3,21.9469]
[1721244767449,20.0,157.34,157.3,21.9469]
[1721244768337,31.7633,157.42,157.31,21.9467]
[1721244768338,6.3549,157.36,157.31,21.9467]
[1721244768536,6.3549,157.36,157.32,15.4831]
[1721244769750,20.0,157.35,157.32,31.0731]
[1721244771132,26.3553,157.35,157.32,31.0731]
[1721244773136,6.3559,157.34,157.32,31.0731]
[1721244773338,26.3552,157.35,157.32,31.0731]
[1721244773559,26.3552,157.35,157.32,15.4831]
[1721244777655,6.356,157.34,157.32,15.4831]
[1721244778262,6.3557,157.34,157.32,15.4831]
[1721244780363,20.0,157.35,157.32,15.4831]
[1721244780939,20.0,157.35,157.32,37.4294]
[1721244781137,20.0,157.35,157.32,31.0731]
[1721244781339,20.0,157.35,157.32,37.4295]
[1721244781949,20.0,157.35,157.32,31.0731]
[1721244782775,26.3554,157.35,157.32,31.0731]
[1721244783462,26.3554,157.35,157.32,15.4831]
[1721244784040,6.3556,157.34,157.32,15.4831]
[1721244784444,20.0,157.35,157.32,15.4831]
[1721244784445,26.3553,157.35,157.32,15.4831]
[1721244784653,26.3553,157.35,157.32,31.0731]
[1721244784966,6.3557,157.34,157.32,31.0731]
[1721244785359,15.8848,157.39,157.32,31.0731]
[1721244785360,6.3547,157.37,157.32,31.0731]
[1721244785541,6.3547,157.37,157.32,37.4292]
[1721244785943,6.3547,157.37,157.34,15.59]
[1721244786160,6.354,157.38,157.34,15.59]
[1721244786358,6.354,157.38,157.33,21.946]
[1721244786755,26.3544,157.37,157.33,21.946]
[1721244786950,20.0,157.37,157.33,15.59]
[1721244788670,6.3546,157.37,157.34,15.59]
[1721244788867,6.3548,157.36,157.33,15.59]
[1721244789283,6.3554,157.35,157.32,15.4831]
[1721244790043,65.0,157.39,157.31,6.3121]
[1721244790248,6.3561,157.33,157.28,22.3029]
[1721244790670,6.3561,157.33,157.28,37.8929]
[1721244791357,6.3557,157.34,157.29,21.9475]
[1721244791559,6.3549,157.36,157.31,21.9468]
[1721244791882,0.17,157.38,157.33,15.59]
[1721244792185,6.3544,157.37,157.33,21.9457]
[1721244792385,24.1489455,157.44,157.35,15.59]
[1721244792546,6.3536,157.39,157.35,15.59]
[1721244792742,6.3536,157.39,157.34,38.4976]
[1721244793343,6.3532,157.4,157.35,6.3552]
[1721244793548,6.3532,157.4,157.35,21.9452]
[1721244794065,30.78150308,157.44,157.35,21.9452]
[1721244794066,6.3536,157.39,157.35,21.9452]
[1721244795153,6.3536,157.39,157.35,15.59]
[1721244795355,30.78150308,157.44,157.34,38.4976]
[1721244795579,6.3539,157.39,157.34,38.4976]
[1721244795780,6.3541,157.38,157.34,16.5521]
[1721244795953,45.0,157.38,157.34,16.5521]
[1721244796151,51.3541,157.38,157.34,16.5521]
[1721244796575,6.3545,157.37,157.34,16.5521]
[1721244798662,51.3541,157.38,157.34,16.5521]
[1721244798877,6.3544,157.37,157.34,16.5521]
[1721244805370,51.3541,157.38,157.34,16.5521]
[1721244806362,6.3545,157.37,157.34,16.5521]
[1721244806563,6.5249,157.36,157.32,6.5163]
[1721244806887,65.0,157.35,157.32,6.5163]
[1721244807089,6.3556,157.34,157.3,38.183]
[1721244807296,65.0,157.35,157.3,15.9336]